bitfinex-derivatives/quotes_SOLF0:USTF0_20260304
["timestamp","ask_amount","ask_price","bid_price","bid_amount"]
[1772642207322,20.79945087,91.659,91.57,20.19968107]
[1772642207518,20.79945087,91.716,91.57,20.19968107]
[1772642207718,20.79945087,91.685,91.611,20.19968107]
[1772642207914,20.79945087,91.685,91.6,7.35667356]
[1772642208413,21.54824304,91.665,91.6,29.16201242]
[1772642208614,21.54824304,91.665,91.601,21.80533886]
[1772642209213,21.54824304,91.665,91.616,9.821]
[1772642210515,21.54824304,91.713,91.621,21.80533886]
[1772642210917,21.54824304,91.708,91.641,9.818]
[1772642211318,7.35667356,91.73,91.606,9.93803873]
[1772642211319,21.54824304,91.689,91.606,9.93803873]
[1772642211525,21.54824304,91.689,91.601,21.80533886]
[1772642212427,21.54824304,91.673,91.606,9.822]
[1772642213222,21.54824304,91.673,91.615,9.821]
[1772642214727,21.54824304,91.673,91.624,9.82]
[1772642216930,21.54824304,91.65,91.569,21.80533886]
[1772642217321,21.54824304,91.65,91.601,9.822]
[1772642217725,21.54824304,91.65,91.587,21.80533886]
[1772642219224,21.54824304,91.647,91.578,9.825]
[1772642219624,21.54824304,91.647,91.581,21.80533886]
[1772642219927,21.54824304,91.679,91.581,21.80533886]
[1772642220128,9.815,91.667,91.603,9.822]
[1772642220531,21.54824304,91.679,91.589,21.80533886]
[1772642220731,21.54824304,91.666,91.589,21.80533886]
[1772642221329,21.54824304,91.664,91.589,21.80533886]
[1772642222031,21.54824304,91.66,91.589,21.80533886]
[1772642222225,21.54824304,91.66,91.594,9.93803873]
[1772642222421,21.54824304,91.66,91.595,21.80533886]
[1772642223435,21.54824304,91.66,91.605,9.822]
[1772642223630,21.54824304,91.659,91.574,9.93803873]
[1772642223831,21.54824304,91.659,91.562,9.93803873]
[1772642224031,21.54824304,91.636,91.575,9.825]
[1772642224930,9.818,91.643,91.585,9.824]
[1772642225227,9.818,91.643,91.586,21.80533886]
[1772642225829,21.54824304,91.651,91.598,9.822]
[1772642226732,21.54824304,91.651,91.606,9.822]
[1772642227026,21.54824304,91.679,91.59,21.80533886]
[1772642227628,21.54824304,91.669,91.59,21.80533886]
[1772642227834,21.54824304,91.669,91.601,21.80533886]
[1772642229325,9.817,91.654,91.603,9.822]
[1772642229835,31.36524304,91.654,91.603,9.822]
[1772642230036,21.54824304,91.654,91.603,9.822]
[1772642230933,31.36524304,91.647,91.595,9.823]
[1772642231133,21.54824304,91.647,91.595,9.823]
[1772642231626,21.54824304,91.647,91.583,21.80533886]
[1772642231627,21.54824304,91.647,91.603,9.822]
[1772642232230,21.54824304,91.647,91.564,13.47089605]
[1772642232231,21.54824304,91.639,91.551,9.93803873]
[1772642232430,21.54824304,91.639,91.544,21.80533886]
[1772642232636,21.54824304,91.59,91.526,9.83]
[1772642232836,21.54824304,91.59,91.525,21.80533886]
[1772642233137,21.54824304,91.59,91.527,21.80533886]
[1772642233435,21.54824304,91.59,91.534,9.829]
[1772642233631,21.54824304,91.609,91.532,21.80533886]
[1772642233837,21.54824304,91.609,91.544,21.80533886]
[1772642234033,21.54824304,91.609,91.547,9.93803873]
[1772642234528,21.54824304,91.609,91.552,9.827]
[1772642234727,21.54824304,91.609,91.545,21.80533886]
[1772642234930,21.54824304,91.609,91.544,9.93803873]
[1772642234931,21.54824304,91.609,91.546,21.80533886]
[1772642235440,21.54824304,91.609,91.55,9.828]
[1772642235630,21.54824304,91.599,91.532,9.93803873]
[1772642235836,21.54824304,91.599,91.527,21.80533886]
[1772642236634,21.54824304,91.599,91.535,21.80533886]
[1772642237039,21.54824304,91.599,91.548,9.828]
[1772642237639,21.54824304,91.586,91.516,9.93803873]
[1772642237938,21.54824304,91.579,91.502,9.93803873]
[1772642238138,21.54824304,91.579,91.501,9.93803873]
[1772642238338,21.54824304,91.576,91.505,19.93175007]
[1772642238538,21.54824304,91.576,91.508,19.93175007]
[1772642238738,21.54824304,91.576,91.511,19.93175007]
[1772642239541,19.81457053,91.619,91.527,19.93175007]
[1772642240241,19.81457053,91.591,91.534,9.829]
[1772642240836,19.81457053,91.591,91.527,19.93175007]
[1772642241041,19.81457053,91.619,91.527,19.93175007]
[1772642241241,19.81457053,91.619,91.541,19.93175007]
[1772642241739,19.81457053,91.619,91.543,19.93175007]
[1772642241935,19.81457053,91.638,91.579,9.825]
[1772642242334,19.81457053,91.638,91.561,19.93175007]
[1772642242535,19.81457053,91.638,91.565,19.93175007]
[1772642242741,19.81457053,91.638,91.588,9.824]
[1772642242937,19.81457053,91.679,91.581,19.93175007]
[1772642244639,7.35667356,91.66,91.581,19.93175007]
[1772642244843,19.81457053,91.659,91.581,19.93175007]
[1772642245043,22.47451041,91.639,91.559,9.93803873]
[1772642245241,22.47451041,91.639,91.551,21.9614015]
[1772642246338,22.47451041,91.639,91.561,21.9614015]
[1772642246544,22.47451041,91.639,91.57,21.9614015]
[1772642247041,22.47451041,91.639,91.595,9.823]
[1772642247345,22.47451041,91.66,91.581,21.9614015]
[1772642247841,22.47451041,91.66,91.605,9.822]
[1772642249045,9.816,91.659,91.595,9.823]
[1772642249250,32.29051041,91.659,91.595,9.823]
[1772642249449,22.47451041,91.658,91.595,9.823]
[1772642249650,22.47451041,91.655,91.586,9.824]
[1772642249849,22.47451041,91.655,91.568,9.93803873]
[1772642250253,22.47451041,91.631,91.576,9.825]
[1772642250453,22.47451041,91.631,91.561,21.9614015]
[1772642250454,22.47451041,91.631,91.561,31.89944023]
[1772642250756,22.47451041,91.631,91.561,21.9614015]
[1772642250951,22.47451041,91.623,91.568,9.826]
[1772642251548,22.47451041,91.62,91.559,9.827]
[1772642252349,9.821,91.616,91.559,9.827]
[1772642252549,22.47451041,91.615,91.559,9.827]
[1772642252749,22.47451041,91.615,91.566,9.826]
[1772642252947,22.47451041,91.615,91.546,21.9614015]
[1772642253252,22.47451041,91.615,91.551,21.9614015]
[1772642253554,22.47451041,91.615,91.552,21.9614015]
[1772642253945,22.47451041,91.628,91.574,9.825]
[1772642254950,22.47451041,91.628,91.552,21.9614015]
[1772642254951,22.47451041,91.628,91.56,7.35667356]
[1772642255257,22.47451041,91.669,91.568,21.9614015]
[1772642255856,22.47451041,91.654,91.568,21.9614015]
[1772642256250,22.47451041,91.654,91.569,21.57616496]
[1772642256659,22.47451041,91.654,91.575,21.57616496]
[1772642256847,22.47451041,91.643,91.569,9.93803873]
[1772642257050,22.47451041,91.643,91.557,21.57649231]
[1772642257453,22.47451041,91.634,91.561,21.5034999]
[1772642257953,22.47451041,91.634,91.59,9.823]
[1772642258755,22.47451041,91.634,91.582,9.824]
[1772642259156,22.47451041,91.632,91.565,9.93803873]
[1772642259355,22.47451041,91.632,91.562,9.93803873]
[1772642259859,22.47451041,91.629,91.561,21.5034999]
[1772642260060,22.47451041,91.629,91.55,9.93803873]
[1772642260253,22.47451041,91.629,91.545,9.93803873]
[1772642260452,22.47451041,91.625,91.551,19.08624509]
[1772642260661,22.47451041,91.625,91.565,9.93803873]
[1772642261062,22.47451041,91.625,91.564,9.93803873]
[1772642261264,22.47451041,91.625,91.548,28.95868709]
[1772642261458,22.47451041,91.625,91.553,19.02064836]
[1772642262457,22.47451041,91.624,91.553,19.02064836]
[1772642262764,22.47451041,91.609,91.533,18.97915321]
[1772642262961,32.29751041,91.594,91.543,9.828]
[1772642263661,22.47451041,91.594,91.551,9.828]
[1772642264360,22.47451041,91.594,91.526,9.93803873]
[1772642264562,22.47451041,91.594,91.518,9.93803873]
[1772642264757,22.47451041,91.589,91.506,9.93803873]
[1772642265060,22.47451041,91.589,91.502,9.93803873]
[1772642265257,22.47451041,91.57,91.506,9.832]
[1772642265459,22.47451041,91.569,91.506,9.832]
[1772642265653,22.47451041,91.564,91.496,18.83389249]
[1772642266054,22.47451041,91.564,91.5,9.93803873]
[1772642266257,22.47451041,91.564,91.499,9.93803873]
[1772642266459,22.47451041,91.564,91.497,9.93803873]
[1772642266761,22.47451041,91.564,91.496,28.77193122]
[1772642266960,22.47451041,91.584,91.505,18.729764]
[1772642267167,22.47451041,91.584,91.514,18.6554399]
[1772642267659,22.47451041,91.584,91.513,9.93803873]
[1772642267660,22.47451041,91.609,91.536,18.6554399]
[1772642268161,22.47451041,91.609,91.545,18.59996513]
[1772642268358,22.47451041,91.609,91.568,9.826]
[1772642268863,22.47451041,91.609,91.559,9.827]
[1772642269157,22.47451041,91.609,91.546,16.51624537]
[1772642269363,19.07010072,91.629,91.561,16.46857585]
[1772642270262,19.07010072,91.649,91.592,9.823]
[1772642270463,19.07010072,91.649,91.581,16.97031569]
[1772642270759,19.07010072,91.647,91.581,16.97031569]
[1772642271863,19.07010072,91.689,91.581,16.97031569]
[1772642272057,19.07010072,91.689,91.58,17.29127173]
[1772642272058,19.07010072,91.689,91.588,17.16459044]
[1772642272257,19.07010072,91.689,91.601,17.16459044]
[1772642272458,19.07010072,91.674,91.601,17.16459044]
[1772642272662,19.07010072,91.674,91.582,9.93803873]
[1772642272863,19.07010072,91.669,91.58,17.16459044]
[1772642273165,19.07010072,91.654,91.58,17.16459044]
[1772642274064,19.07010072,91.652,91.58,17.16459044]
[1772642275258,7.353233,91.67,91.581,9.824]
[1772642275259,19.07010072,91.648,91.581,9.824]
[1772642276360,19.07010072,91.643,91.581,9.824]
[1772642277364,19.07010072,91.64,91.581,9.824]
[1772642277560,19.07010072,91.64,91.572,9.825]
[1772642277756,19.07010072,91.64,91.565,9.93803873]
[1772642278154,9.819,91.633,91.57,9.825]
[1772642278357,19.07010072,91.632,91.57,9.825]
[1772642278964,19.07010072,91.632,91.578,9.825]
[1772642280564,19.07010072,91.669,91.577,17.67001009]
[1772642280959,9.818,91.644,91.586,9.824]
[1772642281564,19.07010072,91.643,91.586,9.824]
[1772642282068,7.353233,91.67,91.57,7.353233]
[1772642282069,19.07010072,91.641,91.575,9.825]
[1772642282767,19.07010072,91.633,91.583,9.824]
[1772642282967,19.07010072,91.669,91.571,17.56641137]
[1772642283267,19.07010072,91.669,91.583,17.52583794]
[1772642283469,19.07010072,91.651,91.583,17.52583794]
[1772642284059,19.07010072,91.648,91.583,17.52583794]
[1772642284367,19.07010072,91.648,91.549,19.87792608]
[1772642284368,19.07010072,91.639,91.558,16.8319893]
[1772642284569,7.353233,91.64,91.539,26.77002803]
[1772642284570,19.07010072,91.621,91.539,26.77002803]
[1772642284769,19.07010072,91.621,91.539,16.8319893]
[1772642284966,9.822,91.602,91.553,9.827]
[1772642285161,19.07010072,91.601,91.539,16.8319893]
[1772642285564,19.07010072,91.601,91.549,9.828]
[1772642286571,19.07010072,91.601,91.556,9.827]
[1772642286970,19.07010072,91.601,91.53,7.353233]
[1772642287169,152.706,91.656,91.524,9.93803873]
[1772642287170,19.07010072,91.599,91.524,16.79148335]
[1772642287772,19.07010072,91.614,91.53,7.353233]
[1772642287972,19.07010072,91.609,91.519,9.93803873]
[1772642288273,28.89410072,91.582,91.533,9.829]
[1772642288467,19.07010072,91.581,91.513,16.762083]
[1772642288969,19.07010072,91.577,91.525,9.83]
[1772642289578,19.07010072,91.575,91.515,9.831]
[1772642289781,19.07010072,91.569,91.504,270.18926109]
[1772642290169,19.07010072,91.569,91.505,16.79599757]
[1772642290675,19.07010072,91.569,91.516,9.831]
[1772642291774,9.826,91.567,91.507,9.832]
[1772642292476,19.07010072,91.563,91.505,16.79599757]
[1772642293285,19.07010072,91.563,91.514,9.831]
[1772642294683,19.07010072,91.609,91.511,16.67818642]
[1772642294885,19.07010072,91.609,91.531,16.67818642]
[1772642295085,9.823,91.597,91.531,16.67818642]
[1772642295275,19.07010072,91.596,91.511,16.64367534]
[1772642295481,19.07010072,91.596,91.531,16.64367534]
[1772642295787,7.353233,91.63,91.531,16.64367534]
[1772642295788,19.07010072,91.614,91.531,16.64367534]
[1772642295987,19.07010072,91.614,91.555,9.827]
[1772642296281,19.07010072,91.614,91.55,7.353233]
[1772642296590,19.07010072,91.633,91.551,16.57536897]
[1772642297182,28.88910072,91.633,91.572,9.825]
[1772642297884,9.82,91.625,91.563,16.51357339]
[1772642298085,19.07010072,91.624,91.563,16.51357339]
[1772642299281,19.07010072,91.624,91.581,9.824]
[1772642299483,19.00615511,91.643,91.57,7.353233]
[1772642299689,19.00615511,91.643,91.571,18.38664189]
[1772642300383,19.00615511,91.643,91.538,20.25700882]
[1772642300384,19.00615511,91.643,91.553,9.93803873]
[1772642300591,19.00615511,91.617,91.533,18.20107823]
[1772642301190,19.00615511,91.615,91.563,9.826]
[1772642301386,19.00615511,91.615,91.533,18.20107823]
[1772642302482,19.00615511,91.612,91.554,9.827]
[1772642302682,19.00615511,91.612,91.533,18.20107823]
[1772642302884,26.35938811,91.63,91.541,18.0527469]
[1772642303088,19.00615511,91.629,91.541,18.0527469]
[1772642303683,9.82,91.626,91.569,9.826]
[1772642303884,19.00615511,91.625,91.541,18.0527469]
[1772642304982,19.00615511,91.625,91.568,9.826]
[1772642305182,19.23947706,91.643,91.561,15.87907824]
[1772642305687,19.23947706,91.619,91.526,9.93803873]
[1772642305987,9.823,91.596,91.538,9.829]
[1772642306187,19.23947706,91.595,91.538,9.829]
[1772642307088,19.23947706,91.595,91.545,9.828]
[1772642308086,19.23947706,91.594,91.537,9.829]
[1772642308393,19.23947706,91.594,91.517,15.87907824]
[1772642309287,19.23947706,91.594,91.535,9.829]
[1772642309992,19.23947706,91.594,91.543,9.828]
[1772642310592,19.23947706,91.594,91.517,15.87907824]
[1772642310593,19.23947706,91.594,91.551,9.828]
[1772642311391,29.06247706,91.593,91.542,9.829]
[1772642313092,29.06247706,91.59,91.542,9.829]
[1772642313292,19.23947706,91.59,91.55,9.828]
[1772642313794,19.23947706,91.59,91.517,15.87907824]
[1772642314087,19.23947706,91.59,91.542,9.829]
[1772642314993,19.23947706,91.59,91.517,15.87907824]
[1772642314994,19.23947706,91.581,91.517,15.87907824]
[1772642315588,19.23947706,91.577,91.521,9.831]
[1772642316493,19.23947706,91.577,91.517,15.87907824]
[1772642316890,19.23947706,91.597,91.517,15.87907824]
[1772642317187,19.23947706,91.597,91.521,16.20016518]
[1772642318586,19.23947706,91.586,91.507,9.93803873]
[1772642318790,19.23947706,91.579,91.505,16.17909386]
[1772642319385,19.23947706,91.579,91.507,16.15505741]
[1772642319690,19.23947706,91.579,91.514,16.15505741]
[1772642319886,7.353233,91.6,91.514,16.15505741]
[1772642320087,9.823,91.591,91.539,9.829]
[1772642320287,13.25726408,91.653,91.5,7.353233]
[1772642320288,7.353233,91.64,91.54,16.07555943]
[1772642320488,19.23947706,91.639,91.546,16.07555943]
[1772642320694,19.23947706,91.639,91.551,16.07555943]
[1772642321295,19.23947706,91.631,91.571,9.825]
[1772642321690,19.23947706,91.631,91.551,16.07555943]
[1772642321889,19.23947706,91.612,91.53,17.29127173]
[1772642322087,19.23947706,91.599,91.517,9.93803873]
[1772642322289,19.23947706,91.599,91.512,9.93803873]
[1772642322489,19.23947706,91.599,91.51,16.24861184]
[1772642322688,7.353233,91.62,91.51,16.24861184]
[1772642322689,19.23947706,91.568,91.51,16.24861184]
[1772642324097,19.23947706,91.568,91.504,270.18926109]
[1772642324499,9.827,91.558,91.504,270.18926109]
[1772642324697,19.23947706,91.557,91.475,9.93803873]
[1772642325199,19.23947706,91.538,91.472,15.91386244]
[1772642325403,19.23947706,91.538,91.458,15.84916965]
[1772642325902,19.23947706,91.534,91.467,9.837]
[1772642326596,19.23947706,91.534,91.476,9.836]
[1772642327704,19.23947706,91.532,91.465,9.837]
[1772642328200,19.23947706,91.532,91.458,15.84916965]
[1772642328407,19.23947706,91.532,91.451,9.93803873]
[1772642328600,18.83995313,91.52,91.451,25.48979413]
[1772642328902,18.83995313,91.519,91.451,15.5517554]
[1772642329503,18.83995313,91.508,91.45,9.838]
[1772642329905,18.83995313,91.528,91.441,15.49190735]
[1772642330098,18.83995313,91.528,91.469,9.836]
[1772642330903,18.83995313,91.528,91.459,15.38818828]
[1772642331502,18.83995313,91.509,91.443,9.93803873]
[1772642331698,18.83995313,91.509,91.43,25.26684555]
[1772642331898,18.83995313,91.509,91.431,15.16746905]
[1772642332102,18.83995313,91.509,91.445,9.839]
[1772642332503,18.83995313,91.509,91.42,7.36646571]
[1772642332504,18.83995313,91.509,91.436,15.10801938]
[1772642332803,18.83995313,91.545,91.461,15.10801938]
[1772642333203,18.83995313,91.545,91.479,9.835]
[1772642333404,9.83,91.534,91.461,15.10801938]
[1772642333609,18.83995313,91.533,91.461,15.10801938]
[1772642333908,18.83995313,91.533,91.488,9.834]
[1772642334409,18.83995313,91.533,91.46,7.36646571]
[1772642334410,18.83995313,91.55,91.481,14.79292319]
[1772642334707,18.83995313,91.568,91.482,14.79292319]
[1772642335109,18.83995313,91.568,91.508,9.832]
[1772642335908,18.83995313,91.568,91.5,14.7372088]
[1772642336610,18.83995313,91.566,91.506,9.832]
[1772642337212,18.83995313,91.586,91.518,14.17026323]
[1772642338111,18.83995313,91.586,91.534,9.829]
[1772642339918,18.83995313,91.586,91.518,14.17026323]
[1772642339919,9.822,91.602,91.545,9.828]
[1772642340212,18.83995313,91.601,91.518,14.17026323]
[1772642340412,18.83995313,91.601,91.521,13.95294615]
[1772642340604,7.36646571,91.63,91.525,9.93803873]
[1772642340803,152.697,91.662,91.521,18.22783638]
[1772642340804,7.36646571,91.61,91.521,18.22783638]
[1772642341007,7.36646571,91.61,91.537,9.829]
[1772642341408,7.36646571,91.61,91.521,18.22783638]
[1772642342213,7.36646571,91.63,91.539,18.22783638]
[1772642342612,18.83995313,91.629,91.541,18.22783638]
[1772642343212,18.83995313,91.628,91.56,9.827]
[1772642343512,18.83995313,91.628,91.541,18.22783638]
[1772642344110,18.83995313,91.612,91.541,18.22783638]
[1772642344613,18.83995313,91.609,91.521,18.22783638]
[1772642344911,18.83995313,91.594,91.529,9.83]
[1772642345510,7.36646571,91.61,91.538,18.22783638]
[1772642345708,18.83995313,91.615,91.541,18.22783638]
[1772642345918,18.83995313,91.634,91.541,18.22783638]
[1772642346116,18.83995313,91.634,91.564,9.826]
[1772642346117,28.65895313,91.634,91.564,9.826]
[1772642346312,18.83995313,91.633,91.561,18.22783638]
[1772642347113,1.90028941,91.656,91.561,18.22783638]
[1772642347114,18.83995313,91.656,91.561,18.22783638]
[1772642347315,18.83995313,91.656,91.581,18.22783638]
[1772642347512,18.83995313,91.656,91.583,18.22783638]
[1772642347513,9.817,91.655,91.583,18.22783638]
[1772642347916,18.83995313,91.656,91.583,18.22783638]
[1772642348221,9.814,91.675,91.601,18.22783638]
[1772642348421,18.83995313,91.674,91.601,18.22783638]
[1772642348815,18.83995313,91.674,91.606,18.22783638]
[1772642349616,18.83995313,91.674,91.624,9.82]
[1772642350014,18.83995313,91.715,91.625,18.22783638]
[1772642351118,18.83995313,91.699,91.625,18.22783638]
[1772642351723,18.83995313,91.699,91.601,18.22783638]
[1772642351917,18.83995313,91.688,91.625,9.82]
[1772642352119,18.83995313,91.688,91.601,18.22783638]
[1772642352716,18.83995313,91.686,91.615,9.821]
[1772642352920,7.36646571,91.7,91.621,18.22783638]
[1772642353226,18.83995313,91.706,91.642,9.818]
[1772642353526,18.83995313,91.706,91.643,18.22783638]
[1772642353720,28.64895313,91.727,91.661,9.816]
[1772642353919,28.64895313,91.727,91.64,7.36646571]
[1772642353920,18.83995313,91.727,91.662,18.22783638]
[1772642354114,7.36646571,91.75,91.662,18.22783638]
[1772642354115,18.83995313,91.747,91.662,18.22783638]
[1772642354420,18.83995313,91.747,91.683,18.22783638]
[1772642354621,18.83995313,91.747,91.663,18.22783638]
[1772642354821,18.83995313,91.725,91.644,18.22783638]
[1772642355622,18.83995313,91.723,91.647,18.22783638]
[1772642355818,7.36646571,91.73,91.647,18.22783638]
[1772642355819,18.83995313,91.709,91.647,18.22783638]
[1772642356327,18.83995313,91.729,91.647,18.22783638]
[1772642356621,9.809,91.728,91.652,18.22783638]
[1772642356824,18.83995313,91.729,91.652,18.22783638]
[1772642357428,18.83995313,91.719,91.621,18.22783638]
[1772642357823,18.83995313,91.719,91.641,18.22783638]
[1772642358123,18.83995313,91.709,91.641,18.22783638]
[1772642359623,18.83995313,91.709,91.644,9.818]
[1772642359930,9.811,91.708,91.641,18.22783638]
[1772642360729,9.811,91.708,91.566,13.45304939]
[1772642360730,18.12841299,91.729,91.643,18.05714442]
[1772642361123,27.93741299,91.728,91.662,27.87314442]
[1772642361327,124.0,91.75,91.64,7.36646571]
[1772642361328,18.12841299,91.727,91.663,18.05714442]
[1772642362029,18.12841299,91.725,91.663,18.05714442]
[1772642362223,124.0,91.75,91.606,18.05714442]
[1772642362224,18.12841299,91.719,91.606,18.05714442]
[1772642362420,18.12841299,91.699,91.606,18.05714442]
[1772642362626,18.12841299,91.686,91.606,18.05714442]
[1772642363132,18.12841299,91.686,91.608,9.821]
[1772642363521,18.12841299,91.686,91.606,18.05714442]
[1772642363926,18.12841299,91.686,91.62,18.05714442]
[1772642364429,18.12841299,91.686,91.6,7.36646571]
[1772642364430,18.12841299,91.686,91.624,18.05714442]
[1772642364627,18.12841299,91.709,91.624,18.05714442]
[1772642365026,18.12841299,91.709,91.627,18.36615338]
[1772642365225,18.12841299,91.709,91.641,18.36615338]
[1772642365434,16.68151206,91.731,91.641,18.36615338]
[1772642365631,16.68151206,91.729,91.656,18.36615338]
[1772642367529,19.608,91.775,91.596,19.646]
[1772642367530,16.68151206,91.719,91.636,18.36615338]
[1772642368323,26.49151206,91.719,91.656,9.816]
[1772642368828,9.81,91.712,91.641,9.818]
[1772642369134,16.68151206,91.711,91.641,9.818]
[1772642369524,16.68151206,91.711,91.596,19.646]
[1772642369525,16.68151206,91.711,91.642,18.36615338]
[1772642370330,16.68151206,91.699,91.622,18.36615338]
[1772642371126,7.36646571,91.69,91.622,18.36615338]
[1772642371332,16.68151206,91.689,91.622,18.36615338]
[1772642371730,16.68151206,91.689,91.6,7.36646571]
[1772642371731,16.68151206,91.68,91.615,9.821]
[1772642373235,16.68151206,91.68,91.623,9.82]
[1772642373626,16.68151206,91.68,91.615,18.36615338]
[1772642374030,26.49551206,91.68,91.616,9.821]
[1772642374237,16.68151206,91.679,91.616,9.821]
[1772642374433,16.68151206,91.679,91.597,18.36615338]
[1772642374634,16.68151206,91.658,91.597,18.36615338]
[1772642374835,24.04797777,91.65,91.561,18.36615338]
[1772642375236,16.68151206,91.649,91.561,18.36615338]
[1772642375633,9.817,91.647,91.586,9.824]
[1772642375834,16.68151206,91.646,91.561,18.36615338]
[1772642376438,16.68151206,91.629,91.561,18.36615338]
[1772642376636,16.68151206,91.629,91.541,18.36615338]
[1772642376833,9.823,91.593,91.541,18.36615338]
[1772642377039,16.68151206,91.609,91.522,284.19983929]
[1772642377240,16.68151206,91.589,91.523,18.36615338]
[1772642377538,16.68151206,91.586,91.523,18.36615338]
[1772642378341,16.68151206,91.586,91.531,9.83]
[1772642378544,16.68151206,91.586,91.523,18.36615338]
[1772642380239,16.68151206,91.574,91.522,265.83368591]
[1772642380835,7.36646571,91.58,91.522,265.83368591]
[1772642380836,16.68151206,91.572,91.522,265.83368591]
[1772642381042,16.68151206,91.572,91.506,9.832]
[1772642381246,16.68151206,91.609,91.511,18.36615338]
[1772642381437,16.68151206,91.609,91.51,7.36646571]
[1772642381438,16.68151206,91.609,91.546,9.828]
[1772642381841,16.68151206,91.609,91.531,18.36615338]
[1772642382640,16.68151206,91.607,91.545,9.828]
[1772642383036,16.68151206,91.607,91.531,18.36615338]
[1772642383442,9.822,91.604,91.535,9.829]
[1772642383743,16.68151206,91.603,91.535,9.829]
[1772642384643,16.68151206,91.6,91.535,9.829]
[1772642384839,16.68151206,91.6,91.545,9.828]
[1772642385044,19.633,91.659,91.51,7.36646571]
[1772642385045,16.68151206,91.639,91.534,18.36615338]
[1772642386046,16.68151206,91.619,91.534,18.36615338]
[1772642386548,16.68151206,91.612,91.534,18.36615338]
[1772642386745,16.68151206,91.599,91.534,18.36615338]
[1772642386945,16.68151206,91.599,91.514,18.36615338]
[1772642387151,16.68151206,91.59,91.527,9.83]
[1772642387644,16.68151206,91.59,91.537,9.829]
[1772642388239,16.68151206,91.59,91.547,9.828]
[1772642388443,17.3483509,91.611,91.547,9.828]
[1772642390346,17.3483509,91.611,91.556,9.827]
[1772642390551,17.3483509,91.63,91.557,17.43796772]
[1772642390850,9.817,91.647,91.561,17.43796772]
[1772642391054,9.817,91.647,91.562,17.43796772]
[1772642391347,17.3483509,91.659,91.568,10.02422552]
[1772642391554,27.1653509,91.65,91.596,9.823]
[1772642391748,17.3483509,91.649,91.569,17.43796772]
[1772642392651,17.3483509,91.644,91.587,9.824]
[1772642392853,17.3483509,91.644,91.569,17.43796772]
[1772642393752,17.3483509,91.638,91.569,17.43796772]
[1772642395252,17.3483509,91.638,91.584,9.824]
[1772642395556,17.3483509,91.638,91.569,17.43796772]
[1772642396452,17.3483509,91.638,91.583,9.824]
[1772642396653,17.3483509,91.656,91.569,17.43796772]
[1772642397056,17.3483509,91.656,91.598,9.822]
[1772642397656,17.3483509,91.656,91.561,17.43796772]
[1772642398360,17.3483509,91.647,91.589,9.823]
[1772642399262,7.35695002,91.64,91.577,9.825]
[1772642399458,17.3483509,91.619,91.561,17.43796772]
[1772642399656,17.3483509,91.619,91.541,17.43796772]
[1772642400369,17.3483509,91.619,91.573,9.825]
[1772642401161,17.3483509,91.619,91.531,17.43796772]
[1772642401465,17.3483509,91.619,91.551,17.43796772]
[1772642402259,17.3483509,91.619,91.57,9.826]
[1772642402973,17.3483509,91.619,91.58,9.824]
[1772642403160,17.3483509,91.639,91.551,17.43796772]
[1772642403656,17.3483509,91.634,91.551,17.43796772]
[1772642403858,17.3483509,91.634,91.553,17.43796772]
[1772642404062,17.3483509,91.653,91.571,17.43796772]
[1772642405166,17.3483509,91.653,91.609,9.821]
[1772642405366,17.3483509,91.653,91.595,17.43796772]
[1772642405866,17.3483509,91.653,91.601,9.822]
[1772642406261,17.3483509,91.653,91.57,7.35695002]
[1772642406262,17.3483509,91.653,91.582,9.824]
[1772642406462,17.3483509,91.653,91.575,17.43796772]
[1772642406767,17.3483509,91.653,91.598,9.823]
[1772642407267,17.3483509,91.674,91.575,17.43796772]
[1772642407467,17.3483509,91.674,91.597,9.823]
[1772642408070,9.817,91.652,91.597,9.823]
[1772642408472,17.3483509,91.657,91.588,9.824]
[1772642408871,17.3483509,91.676,91.601,17.43796772]
[1772642409275,152.555,91.747,91.579,10.02422552]
[1772642409276,17.3483509,91.699,91.621,17.43796772]
[1772642410870,17.3483509,91.69,91.621,17.43796772]
[1772642412168,17.3483509,91.69,91.6,7.35695002]
[1772642412368,152.568,91.739,91.577,17.43796772]
[1772642412369,17.3483509,91.679,91.577,17.43796772]
[1772642412673,17.3483509,91.66,91.577,17.43796772]
[1772642413374,17.3483509,91.66,91.614,9.821]
[1772642413574,9.814,91.678,91.614,9.821]
[1772642413776,9.814,91.678,91.556,19.655]
[1772642413777,24.70530092,91.7,91.615,17.43796772]
[1772642413972,17.3483509,91.699,91.621,17.43796772]
[1772642414873,17.3483509,91.699,91.649,9.817]